[Event "2nd Goa GM Open 2019"]
[Site "Goa"]
[Date "2019.06.21"]
[Round "5.5"]
[White "Malakhatko, Vadim"]
[Black "Viani Antonio Dcunha"]
[Result "1/2-1/2"]
[ECO "E97"]
[WhiteElo "2505"]
[BlackElo "2362"]
[Annotator "ChessBase"]
[PlyCount "61"]
[EventDate "2019.06.17"]
[EventType "swiss"]
[EventCountry "IND"]
[SourceTitle "playchess.com"]
[Source "ChessBase"]
[SourceQuality "1"]
[TimeControl "5400+30"]

1. d4 {[%emt 0:00:00]} Nf6 {[%emt 0:00:27]} 2. c4 {[%emt 0:00:00]} g6 {[%emt 0:00:08]} 3. Nc3 {[%emt 0:00:00]} Bg7 {[%emt 0:00:13]} 4. e4 {[%emt 0:00:00]} d6 {[%emt 0:00:11]} 5. Nf3 {[%emt 0:00:04]} O-O {[%emt 0:00:20]} 6. Be2 {[%emt 0:00:11]} e5 {[%emt 0:00:31]} 7. O-O {[%emt 0:00:08]} Nc6 {[%emt 0:00:14]} 8. d5 {[%emt 0:00:07]} Ne7 {[%emt 0:00:09]} 9. a4 {[%emt 0:00:05]} a5 {[%emt 0:00:44]} 10. Ne1 {[%emt 0:04:48]} Nd7 {[%emt 0:01:45]} 11. Nd3 {[%emt 0:01:55]} f5 {[%emt 0:01:07]} 12. f3 {[%emt 0:00:07]} Kh8 {[%emt 0:01:04]} 13. Nb5 {[%emt 0:15:43]} Nf6 {[%emt 0:09:49]} 14. Nf2 {[%emt 0:01:13]} Ne8 {[%emt 0:10:14]} 15. b3 {[%emt 0:10:08]} c5 {[%emt 0:09:29]} 16. exf5 {[%emt 0:08:49]} gxf5 {[%emt 0:10:24]} 17. f4 {[%emt 0:00:09]} Ng6 {[%emt 0:02:43]} 18. Ra2 {[%emt 0:01:23]} Nc7 {[%emt 0:07:58]} 19. Nxc7 {[%emt 0:01:28]} Qxc7 {[%emt 0:00:10]} 20. Bh5 {[%emt 0:00:56]} e4 {[%emt 0:09:25]} 21. Bxg6 {[%emt 0:08:27]} hxg6 {[%emt 0:00:11]} 22. Bb2 {[%emt 0:00:04]} Bxb2 {[%emt 0:03:02]} 23. Rxb2 {[%emt 0:00:03]} Qg7 {[%emt 0:00:15]} 24. Re2 {[%emt 0:00:23]} Bd7 {[%emt 0:01:56]} 25. Re3 {[%emt 0:10:58]} Qd4 {[%emt 0:02:50]} 26. Qc1 {[%emt 0:01:21]} Kg7 {[%emt 0:01:09]} 27. Rd1 {[%emt 0:00:44]} Qf6 {[%emt 0:00:07]} 28. Nh3 {[%emt 0:01:00]} Rh8 {[%emt 0:03:50]} 29. Ng5 {[%emt 0:00:25]} Rh4 {[%emt 0:01:30]} 30. g3 {[%emt 0:09:23]} Rh5 {[%emt 0:02:01]} 31. Qa1 {[%emt 0:08:16]} 1/2-1/2

[Event "2nd Goa GM Open 2019"]
[Site "Goa"]
[Date "2019.06.21"]
[Round "5.8"]
[White "Manik, Mikulas"]
[Black "Gupta, Abhijeet"]
[Result "0-1"]
[ECO "C11"]
[WhiteElo "2399"]
[BlackElo "2606"]
[Annotator "RC"]
[PlyCount "54"]
[EventDate "2019.06.17"]
[EventType "swiss"]
[EventCountry "IND"]
[SourceTitle "playchess.com"]
[Source "ChessBase"]
[SourceQuality "1"]
[TimeControl "5400+30"]

1. e4 {[%emt 0:00:00]} e6 {[%emt 0:00:01]} 2. d4 {[%emt 0:00:00]} d5 {[%emt 0:00:04]} 3. Nc3 {[%emt 0:00:00]} Nf6 {[%emt 0:00:03]} 4. e5 {[%emt 0:00:00]} Nfd7 {[%emt 0:00:04]} 5. f4 {[%emt 0:00:00]} c5 {[%emt 0:00:02]} 6. Nf3 {[%emt 0:00:00]} Nc6 {[%emt 0:00:04]} 7. Be3 {[%emt 0:00:04]} Be7 {[%emt 0:00:02]} 8. Qd2 {[%emt 0:04:11]} O-O {[%emt 0:00:23]} 9. dxc5 {[%emt 0:03:15]} Qa5 {[%emt 0:00:27]} 10. O-O-O {[%emt 0:05:03]} b6 {[%emt 0:01:03]} 11. Bb5 {[%emt 0:09:53]} Nb4 {[%emt 0:00:20]} 12. a3 {[%emt 0:04:07]} bxc5 {[%emt 0:00:09]} 13. Bxd7 {[%emt 0:04:58]} Bxd7 {[%emt 0:00:17]} 14. axb4 {[%emt 0:01:06]} cxb4 {[%emt 0:00:04]} 15. Nb1 {[%emt 0:00:14]} Rfc8 {[%emt 0:00:05]} 16. Nd4 {[%emt 0:00:51]} Qa2 {[%emt 0:01:28]} 17. Qd3 {[%emt 0:03:24]} a5 {[%emt 0:00:05]} 18. b3 {[%emt 0:21:45]} Rc3 {[%emt 0:04:33]} 19. Qe2 {[%emt 0:07:51]} a4 {[%emt 0:03:43]} 20. bxa4 {[%emt 0:05:10]} Rac8 {[%emt 0:05:39]} 21. Rd3 {[%emt 0:01:11]} R3c4 {[%emt 0:16:08]} 22. c3 {[%emt 0:06:19]} Qxa4 {[%emt 0:01:29]} 23. Nc2 {[%emt 0:09:19]} Bb5 {[%emt 0:06:39]} 24. Qd2 {[%emt 0:04:18]} R4c7 {[%emt 0:00:17]} 25. Bd4 {[%emt 0:04:44]} b3 {[%emt 0:03:32]} 26. Ne3 {[%emt 0:01:24]} b2+ {[%emt 0:00:05]} 27. Kxb2 {[%emt 0:00:06]} Rb7 {[%emt 0:01:30]} 0-1

[Event "2nd Goa GM Open 2019"]
[Site "Goa"]
[Date "2019.06.21"]
[Round "5.9"]
[White "Idani, Pouya"]
[Black "Rahul Srivatshav P"]
[Result "0-1"]
[ECO "E65"]
[WhiteElo "2597"]
[BlackElo "2395"]
[Annotator "RC"]
[PlyCount "168"]
[EventDate "2019.06.17"]
[EventType "swiss"]
[EventCountry "IND"]
[SourceTitle "playchess.com"]
[Source "ChessBase"]
[SourceQuality "1"]
[TimeControl "5400+30"]

1. d4 {[%emt 0:00:00]} Nf6 {[%emt 0:00:43]} 2. c4 {[%emt 0:00:00]} g6 {[%emt 0:00:04]} 3. g3 {[%emt 0:00:00]} Bg7 {[%emt 0:00:04]} 4. Bg2 {[%emt 0:00:00]} O-O {[%emt 0:00:06]} 5. Nc3 {[%emt 0:00:00]} d6 {[%emt 0:00:03]} 6. Nf3 {[%emt 0:00:01]} c5 {[%emt 0:00:04]} 7. O-O {[%emt 0:00:12]} Nc6 {[%emt 0:00:04]} 8. dxc5 {[%emt 0:00:08]} dxc5 {[%emt 0:00:07]} 9. Be3 {[%emt 0:00:05]} Qa5 {[%emt 0:00:09]} 10. Qa4 {[%emt 0:05:53]} Qxa4 {[%emt 0:00:11]} 11. Nxa4 {[%emt 0:00:07]} b6 {[%emt 0:00:07]} 12. Rad1 {[%emt 0:02:10]} Bf5 {[%emt 0:00:54]} 13. Nc3 {[%emt 0:01:54]} Rac8 {[%emt 0:02:16]} 14. Nh4 {[%emt 0:05:01]} Be6 {[%emt 0:03:26]} 15. Nd5 {[%emt 0:00:22]} Rfd8 {[%emt 0:01:40]} 16. Rd2 {[%emt 0:07:28]} Bxd5 {[%emt 0:12:10]} 17. cxd5 {[%emt 0:01:15]} Nb4 {[%emt 0:07:39]} 18. Bg5 {[%emt 0:00:18]} h6 {[%emt 0:05:48]} 19. Bxf6 {[%emt 0:00:27]} Bxf6 {[%emt 0:00:06]} 20. a3 {[%emt 0:04:12]} Nc6 {[%emt 0:03:15]} 21. f4 {[%emt 0:05:49]} e6 {[%emt 0:05:11]} 22. e4 {[%emt 0:38:34]} exd5 {[%emt 0:01:36]} 23. exd5 {[%emt 0:00:06]} Bxh4 {[%emt 0:02:45]} 24. gxh4 {[%emt 0:00:05]} Nd4 {[%emt 0:00:36]} 25. h5 {[%emt 0:02:39]} gxh5 {[%emt 0:05:50]} 26. Kf2 {[%emt 0:02:05]} Rd6 {[%emt 0:03:28]} 27. Re1 {[%emt 0:07:10]} Rf6 {[%emt 0:02:09]} 28. Re4 {[%emt 0:01:44]} Rd8 {[%emt 0:00:37]} 29. Ke3 {[%emt 0:00:22]} Nf5+ {[%emt 0:01:19]} 30. Kf3 {[%emt 0:01:40]} Nd4+ {[%emt 0:01:33]} 31. Ke3 {[%emt 0:00:11]} Nf5+ {[%emt 0:18:23]} 32. Kf3 {[%emt 0:00:10]} Kh7 {[%emt 0:06:19]} 33. Re5 {[%emt 0:01:29]} Rg8 {[%emt 0:00:08]} 34. Rxf5 {[%emt 0:02:28]} Rxf5 {[%emt 0:00:11]} 35. d6 {[%emt 0:01:50]} Rf6 {[%emt 0:02:44]} 36. Bh3 {[%emt 0:00:53]} Rd8 {[%emt 0:00:47]} 37. d7 {[%emt 0:00:41]} Kg7 {[%emt 0:00:13]} 38. Ke4 {[%emt 0:04:02]} Kf8 {[%emt 0:01:43]} 39. Kd5 {[%emt 0:00:08]} c4 {[%emt 0:04:38]} 40. Re2 {[%emt 0:03:04]} b5 {[%emt 0:00:28]} 41. Kc5 {[%emt 0:00:34]} a6 {[%emt 0:00:14]} 42. Re4 {[%emt 0:00:16]} Rg6 43. Re1 {[%emt 0:00:57]} Rf6 {[%emt 0:01:42]} 44. Re4 {[%emt 0:00:13]} Rg6 {[%emt 0:00:05]} 45. Re2 {[%emt 0:00:10]} Rf6 {[%emt 0:00:14]} 46. Re5 {[%emt 0:01:20]} h4 {[%emt 0:00:46]} 47. Re4 {[%emt 0:00:26]} Rg6 {[%emt 0:00:06]} 48. Re1 {[%emt 0:00:03]} Rf6 {[%emt 0:00:05]} 49. Re2 {[%emt 0:00:39]} Rg6 {[%emt 0:00:09]} 50. Re4 {[%emt 0:00:03]} Rf6 {[%emt 0:00:08]} 51. a4 {[%emt 0:00:05]} bxa4 {[%emt 0:01:37]} 52. Re2 {[%emt 0:01:22]} a3 {[%emt 0:03:34]} 53. bxa3 {[%emt 0:00:07]} c3 {[%emt 0:00:01]} 54. Rc2 {[%emt 0:01:49]} Ke7 {[%emt 0:00:09]} 55. Rxc3 {[%emt 0:02:06]} Rxd7 {[%emt 0:00:05]} 56. Bxd7 {[%emt 0:00:58]} Kxd7 {[%emt 0:00:04]} 57. Rb3 {[%emt 0:00:33]} Rxf4 {[%emt 0:01:18]} 58. Rb7+ {[%emt 0:01:18]} Ke8 {[%emt 0:00:36]} 59. Rb6 {[%emt 0:00:19]} Ra4 {[%emt 0:00:59]} 60. Rxh6 {[%emt 0:00:13]} Kf8 {[%emt 0:00:06]} 61. Kd6 Kg7 {[%emt 0:00:44]} 62. Rh5 {[%emt 0:01:10]} Kg6 {[%emt 0:01:09]} 63. Rh8 {[%emt 0:00:07]} Kg7 {[%emt 0:00:04]} 64. Rh5 {[%emt 0:00:04]} Kg6 {[%emt 0:00:01]} 65. Rh8 {[%emt 0:00:05]} Kg5 {[%emt 0:00:15]} 66. Ke5 {[%emt 0:01:33]} Ra5+ {[%emt 0:00:29]} 67. Ke4 {[%emt 0:00:13]} f5+ {[%emt 0:00:10]} 68. Kf3 {[%emt 0:00:28]} Rxa3+ {[%emt 0:00:04]} 69. Kf2 {[%emt 0:00:04]} Kg4 {[%emt 0:00:09]} 70. Rg8+ {[%emt 0:00:20]} Kf4 {[%emt 0:00:34]} 71. Rc8 {[%emt 0:00:05]} Ra2+ {[%emt 0:00:15]} 72. Kf1 {[%emt 0:00:48]} Rxh2 {[%emt 0:02:13]} 73. Rc4+ {[%emt 0:00:05]} Kf3 {[%emt 0:00:03]} 74. Rc3+ {[%emt 0:00:03]} Kg4 {[%emt 0:00:06]} 75. Ra3 {[%emt 0:00:07]} f4 {[%emt 0:02:38]} 76. Rxa6 {[%emt 0:00:18]} Rb2 {[%emt 0:00:06]} 77. Rg6+ {[%emt 0:01:17]} Kf3 {[%emt 0:00:11]} 78. Kg1 {[%emt 0:00:03]} Rb1+ {[%emt 0:04:04]} 79. Kh2 {[%emt 0:00:05]} Ke2 {[%emt 0:00:05]} 80. Re6+ {[%emt 0:00:08]} Kf2 {[%emt 0:00:23]} 81. Ra6 {[%emt 0:02:41]} f3 {[%emt 0:02:00]} 82. Ra2+ {[%emt 0:01:12]} Kf1 {[%emt 0:00:07]} 83. Ra4 {[%emt 0:01:35]} f2 {[%emt 0:00:09]} 84. Re4 {[%emt 0:00:33]} Re1 {[%emt 0:00:06]} 0-1

[Event "2nd Goa GM Open 2019"]
[Site "Goa"]
[Date "2019.06.21"]
[Round "5.10"]
[White "Nitin, S.."]
[Black "Aleksandrov, Aleksej"]
[Result "1/2-1/2"]
[ECO "C77"]
[WhiteElo "2398"]
[BlackElo "2588"]
[Annotator "ChessBase"]
[PlyCount "95"]
[EventDate "2019.06.17"]
[EventType "swiss"]
[EventCountry "IND"]
[SourceTitle "playchess.com"]
[Source "ChessBase"]
[SourceQuality "1"]
[TimeControl "5400+30"]

1. e4 {[%emt 0:00:05]} e5 {[%emt 0:00:00]} 2. Nf3 {[%emt 0:00:08]} Nc6 {[%emt 0:00:00]} 3. Bb5 {[%emt 0:00:09]} a6 {[%emt 0:00:00]} 4. Ba4 {[%emt 0:00:07]} Nf6 {[%emt 0:00:00]} 5. Qe2 {[%emt 0:00:08]} Bc5 {[%emt 0:07:04]} 6. c3 {[%emt 0:04:25]} O-O {[%emt 0:04:11]} 7. O-O {[%emt 0:01:43]} b5 {[%emt 0:07:29]} 8. Bc2 {[%emt 0:00:47]} Re8 {[%emt 0:02:30]} 9. d3 {[%emt 0:07:38]} h6 {[%emt 0:09:06]} 10. h3 {[%emt 0:02:55]} d5 {[%emt 0:07:20]} 11. Nbd2 {[%emt 0:00:54]} Bf8 {[%emt 0:09:01]} 12. Rd1 {[%emt 0:02:22]} g6 {[%emt 0:05:56]} 13. Nf1 {[%emt 0:03:33]} Rb8 {[%emt 0:02:14]} 14. Ng3 {[%emt 0:05:01]} Bg7 {[%emt 0:07:13]} 15. Be3 {[%emt 0:03:51]} d4 {[%emt 0:03:44]} 16. Bd2 {[%emt 0:01:35]} Nd7 {[%emt 0:02:49]} 17. Rac1 {[%emt 0:03:28]} Nb6 {[%emt 0:01:21]} 18. Bb3 {[%emt 0:06:18]} Be6 {[%emt 0:07:08]} 19. cxd4 {[%emt 0:01:28]} Bxb3 {[%emt 0:00:27]} 20. axb3 {[%emt 0:00:08]} Nxd4 {[%emt 0:00:02]} 21. Nxd4 {[%emt 0:00:08]} exd4 {[%emt 0:00:02]} 22. Rc6 {[%emt 0:05:46]} Qd7 {[%emt 0:07:51]} 23. Rdc1 {[%emt 0:00:45]} Rbc8 {[%emt 0:01:24]} 24. Qg4 {[%emt 0:02:22]} Re6 {[%emt 0:00:18]} 25. Rxe6 {[%emt 0:01:30]} Qxe6 {[%emt 0:00:04]} 26. Qxe6 {[%emt 0:00:50]} fxe6 {[%emt 0:00:07]} 27. Rc6 Kf7 {[%emt 0:00:32]} 28. f4 {[%emt 0:03:24]} Nd7 {[%emt 0:00:50]} 29. Ba5 {[%emt 0:02:51]} Bf8 {[%emt 0:04:09]} 30. Ne2 {[%emt 0:05:50]} e5 {[%emt 0:02:35]} 31. Rxc7 {[%emt 0:05:57]} Rxc7 {[%emt 0:00:04]} 32. Bxc7 {[%emt 0:00:05]} exf4 {[%emt 0:00:42]} 33. Bxf4 {[%emt 0:01:12]} g5 {[%emt 0:02:00]} 34. Bc7 {[%emt 0:00:45]} Bb4 {[%emt 0:00:35]} 35. Kf1 {[%emt 0:01:50]} Nc5 {[%emt 0:00:42]} 36. Nxd4 {[%emt 0:02:43]} Nxd3 {[%emt 0:00:09]} 37. Nc6 {[%emt 0:02:25]} Bf8 {[%emt 0:02:04]} 38. Ne5+ {[%emt 0:01:01]} Nxe5 {[%emt 0:00:08]} 39. Bxe5 {[%emt 0:00:04]} Ke6 {[%emt 0:00:05]} 40. Bd4 {[%emt 0:00:56]} h5 {[%emt 0:00:07]} 41. g4 {[%emt 0:00:33]} hxg4 {[%emt 0:00:14]} 42. hxg4 {[%emt 0:00:06]} Be7 {[%emt 0:01:32]} 43. Ke2 {[%emt 0:00:14]} Bd8 {[%emt 0:00:08]} 44. Kd3 {[%emt 0:00:22]} Bc7 {[%emt 0:02:59]} 45. Kc3 {[%emt 0:02:10]} Ba5+ {[%emt 0:00:04]} 46. Kd3 {[%emt 0:00:12]} Bc7 {[%emt 0:00:03]} 47. Be3 {[%emt 0:00:11]} Bd8 {[%emt 0:00:03]} 48. Bd4 {[%emt 0:00:05] Ke5} 1/2-1/2

[Event "2nd Goa GM Open 2019"]
[Site "Goa"]
[Date "2019.06.21"]
[Round "5.11"]
[White "Stupak, Kirill"]
[Black "Koustav Chatterjee"]
[Result "1-0"]
[ECO "D30"]
[WhiteElo "2584"]
[BlackElo "2404"]
[Annotator "RC"]
[PlyCount "89"]
[EventDate "2019.06.17"]
[EventType "swiss"]
[EventCountry "IND"]
[SourceTitle "playchess.com"]
[Source "ChessBase"]
[SourceQuality "1"]
[TimeControl "5400+30"]

1. d4 {[%emt 0:00:00]} Nf6 {[%emt 0:00:00]} 2. c4 {[%emt 0:00:00]} e6 {[%emt 0:00:00]} 3. Nf3 {[%emt 0:00:00]} d5 {[%emt 0:00:00]} 4. Bg5 {[%emt 0:00:00]} Bb4+ {[%emt 0:00:00]} 5. Nbd2 {[%emt 0:00:00]} dxc4 {[%emt 0:00:04]} 6. e3 {[%emt 0:00:00]} b5 {[%emt 0:00:15]} 7. a3 {[%emt 0:00:00]} Ba5 {[%emt 0:00:35]} 8. Be2 {[%emt 0:00:42]} Bb7 {[%emt 0:00:12]} 9. O-O {[%emt 0:03:07]} O-O {[%emt 0:02:01]} 10. b3 {[%emt 0:03:10]} c3 {[%emt 0:02:06]} 11. b4 {[%emt 0:08:09]} cxd2 {[%emt 0:14:41]} 12. bxa5 {[%emt 0:00:04]} Qd5 {[%emt 0:00:53]} 13. Bxf6 {[%emt 0:06:45]} gxf6 {[%emt 0:01:26]} 14. Qxd2 {[%emt 0:00:20]} a6 {[%emt 0:03:25]} 15. Rfc1 {[%emt 0:03:14]} Qd6 {[%emt 0:02:31]} 16. a4 {[%emt 0:12:09]} bxa4 {[%emt 0:05:48]} 17. Rxa4 {[%emt 0:00:08]} Nd7 {[%emt 0:00:25]} 18. Rac4 {[%emt 0:02:41]} Rfc8 {[%emt 0:04:57]} 19. Qc3 {[%emt 0:01:03]} c6 {[%emt 0:04:50]} 20. Ne1 {[%emt 0:12:58]} Rc7 {[%emt 0:06:45]} 21. Nd3 {[%emt 0:00:57]} Rac8 {[%emt 0:02:05]} 22. Nc5 {[%emt 0:07:07]} Nxc5 {[%emt 0:01:37]} 23. Rxc5 {[%emt 0:00:04]} Kh8 {[%emt 0:01:14]} 24. g3 {[%emt 0:02:06]} Re7 {[%emt 0:02:48]} 25. Bf3 {[%emt 0:01:06]} e5 {[%emt 0:00:50]} 26. d5 {[%emt 0:09:29]} e4 {[%emt 0:03:20]} 27. Bg4 {[%emt 0:00:03]} Rg8 {[%emt 0:00:25]} 28. dxc6 {[%emt 0:00:14]} Rxg4 {[%emt 0:00:38]} 29. cxb7 {[%emt 0:01:21]} Rxb7 {[%emt 0:00:04]} 30. Rc6 {[%emt 0:07:16]} Qe5 {[%emt 0:01:27]} 31. Rxf6 {[%emt 0:00:08]} Qxc3 {[%emt 0:00:56]} 32. Rxc3 {[%emt 0:00:02]} Rg5 {[%emt 0:00:06]} 33. Rxa6 {[%emt 0:00:46]} Rb1+ {[%emt 0:01:16]} 34. Kg2 {[%emt 0:00:03]} Rf5 {[%emt 0:00:02]} 35. g4 {[%emt 0:04:03]} Rf3 {[%emt 0:01:18]} 36. Rc2 {[%emt 0:03:08]} Ra1 {[%emt 0:00:43]} 37. Ra8+ {[%emt 0:00:01]} Kg7 {[%emt 0:00:08]} 38. Re8 {[%emt 0:00:09]} Rxa5 {[%emt 0:00:46]} 39. Rxe4 {[%emt 0:00:02]} Rf6 {[%emt 0:00:09]} 40. Rcc4 {[%emt 0:00:20]} Ra7 {[%emt 0:01:07]} 41. h3 {[%emt 0:00:26]} Rg6 {[%emt 0:00:30]} 42. Rc5 {[%emt 0:00:07]} Rf6 {[%emt 0:00:20]} 43. Rec4 {[%emt 0:00:30]} h6 {[%emt 0:00:22]} 44. Kg3 {[%emt 0:00:08]} Ra1 {[%emt 0:00:20]} 45. Rf4 {[%emt 0:00:56]} 1-0

[Event "2nd Goa GM Open 2019"]
[Site "Goa"]
[Date "2019.06.21"]
[Round "5.16"]
[White "Burmakin, Vladimir"]
[Black "Rohith Krishna S"]
[Result "1/2-1/2"]
[ECO "A05"]
[WhiteElo "2526"]
[BlackElo "2347"]
[Annotator "RC"]
[PlyCount "130"]
[EventDate "2019.06.17"]
[EventType "swiss"]
[EventCountry "IND"]
[SourceTitle "playchess.com"]
[Source "ChessBase"]
[SourceQuality "1"]
[TimeControl "5400+30"]

1. Nf3 {[%emt 0:00:00]} Nf6 {[%emt 0:00:00]} 2. g3 {[%emt 0:00:00]} b6 {[%emt 0:00:20]} 3. Bg2 {[%emt 0:00:00]} Bb7 {[%emt 0:00:07]} 4. O-O {[%emt 0:00:26]} e6 {[%emt 0:00:20]} 5. c4 {[%emt 0:00:10]} Be7 {[%emt 0:00:07]} 6. d4 {[%emt 0:00:06]} O-O {[%emt 0:00:08]} 7. Re1 {[%emt 0:00:03]} d5 {[%emt 0:03:03]} 8. cxd5 {[%emt 0:00:08]} exd5 {[%emt 0:01:15]} 9. Nc3 {[%emt 0:00:43]} c5 {[%emt 0:03:47]} 10. b3 Nc6 {[%emt 0:00:55]} 11. Bb2 {[%emt 0:00:25]} Re8 {[%emt 0:06:10]} 12. e3 {[%emt 0:00:20]} Bf8 {[%emt 0:01:33]} 13. Rc1 {[%emt 0:00:28]} Rc8 {[%emt 0:00:27]} 14. dxc5 {[%emt 0:22:52]} Bxc5 {[%emt 0:09:03]} 15. a3 {[%emt 0:00:12]} Bf8 {[%emt 0:11:48]} 16. Bh3 {[%emt 0:05:33]} Rb8 {[%emt 0:04:50]} 17. Nb5 {[%emt 0:00:15]} Ne4 {[%emt 0:03:03]} 18. Nfd4 {[%emt 0:01:27]} Nxd4 {[%emt 0:00:42]} 19. Bxd4 {[%emt 0:06:58]} Ng5 {[%emt 0:06:39]} 20. Bg2 {[%emt 0:01:05]} Ne6 {[%emt 0:00:44]} 21. Be5 {[%emt 0:12:01]} Ra8 {[%emt 0:02:33]} 22. b4 {[%emt 0:00:11]} a5 {[%emt 0:02:36]} 23. Qb3 {[%emt 0:02:00]} axb4 {[%emt 0:03:07]} 24. axb4 {[%emt 0:00:02]} Ba6 {[%emt 0:04:08]} 25. Na3 {[%emt 0:01:57]} Bb7 {[%emt 0:00:05]} 26. Nc2 {[%emt 0:00:59]} Ng5 {[%emt 0:08:02]} 27. Bb2 {[%emt 0:00:17]} Ne4 {[%emt 0:00:44]} 28. Red1 {[%emt 0:01:19]} Rc8 {[%emt 0:01:21]} 29. Nd4 {[%emt 0:16:36]} Rxc1 {[%emt 0:01:07]} 30. Rxc1 {[%emt 0:00:30]} Qd7 {[%emt 0:00:09]} 31. b5 {[%emt 0:00:36]} Rc8 {[%emt 0:02:01]} 32. Rd1 {[%emt 0:01:57]} Qe7 {[%emt 0:05:37]} 33. Nc6 {[%emt 0:02:41]} Bxc6 {[%emt 0:00:07]} 34. bxc6 {[%emt 0:00:06]} Rxc6 {[%emt 0:00:52]} 35. Rxd5 {[%emt 0:00:08]} Nc5 {[%emt 0:01:02]} 36. Qc4 {[%emt 0:01:18]} Rd6 {[%emt 0:00:31]} 37. Bd4 {[%emt 0:00:29]} Rxd5 {[%emt 0:01:22]} 38. Bxd5 {[%emt 0:00:06]} Qd7 {[%emt 0:00:06]} 39. Qa2 {[%emt 0:01:28]} b5 {[%emt 0:02:32]} 40. h4 {[%emt 0:04:53]} Ne6 {[%emt 0:00:42]} 41. Be5 {[%emt 0:00:24]} b4 {[%emt 0:00:47]} 42. Qc4 {[%emt 0:01:07]} h6 {[%emt 0:01:42]} 43. Kf1 {[%emt 0:00:42]} Nc5 {[%emt 0:00:19]} 44. e4 {[%emt 0:05:12]} Qe7 {[%emt 0:01:32]} 45. Bb2 {[%emt 0:03:24]} Ne6 {[%emt 0:00:13]} 46. e5 {[%emt 0:01:56]} Qd7 {[%emt 0:00:45]} 47. Ke2 {[%emt 0:01:01]} Nc5 {[%emt 0:00:21]} 48. Bd4 {[%emt 0:00:50]} Ne6 {[%emt 0:00:05]} 49. Be3 {[%emt 0:00:20]} Nc7 {[%emt 0:01:55]} 50. Bc6 {[%emt 0:00:47]} Qe7 {[%emt 0:01:02]} 51. f4 {[%emt 0:00:55]} Kh8 {[%emt 0:01:18]} 52. h5 {[%emt 0:00:56]} f6 {[%emt 0:02:05]} 53. exf6 {[%emt 0:00:31]} Qxf6 {[%emt 0:00:06]} 54. Be4 {[%emt 0:05:02]} Qe7 {[%emt 0:00:24]} 55. Bc2 {[%emt 0:00:24]} Ne8 {[%emt 0:00:09]} 56. Kf2 {[%emt 0:01:32]} Nf6 {[%emt 0:00:25]} 57. Bd4 {[%emt 0:00:15]} Qd8 {[%emt 0:02:07]} 58. Qd3 {[%emt 0:01:17]} Qd5 {[%emt 0:01:24]} 59. Bxf6 {[%emt 0:00:23]} Qxd3 {[%emt 0:00:06]} 60. Bxg7+ {[%emt 0:00:01]} Kxg7 {[%emt 0:00:12]} 61. Bxd3 {[%emt 0:00:04]} b3 {[%emt 0:00:41]} 62. Kf3 {[%emt 0:00:07]} b2 {[%emt 0:00:10]} 63. Kg4 {[%emt 0:00:06]} Bc5 {[%emt 0:00:07]} 64. Kf5 {[%emt 0:00:06]} Bf2 {[%emt 0:00:14]} 65. g4 {[%emt 0:00:07]} Bh4 {[%emt 0:00:06]} 1/2-1/2

[Event "2nd Goa GM Open 2019"]
[Site "Goa"]
[Date "2019.06.21"]
[Round "5.17"]
[White "Anurag, Mhamal"]
[Black "Pranav Vijay"]
[Result "1-0"]
[ECO "C55"]
[WhiteElo "2497"]
[BlackElo "2265"]
[Annotator "ChessBase"]
[PlyCount "89"]
[EventDate "2019.06.17"]
[EventType "swiss"]
[EventCountry "IND"]
[SourceTitle "playchess.com"]
[Source "ChessBase"]
[SourceQuality "1"]
[TimeControl "5400+30"]

1. e4 {[%emt 0:05:30]} e5 {[%emt 0:00:00]} 2. Nf3 {[%emt 0:00:10]} Nc6 {[%emt 0:00:00]} 3. Bc4 {[%emt 0:01:07]} Nf6 {[%emt 0:00:12]} 4. d4 {[%emt 0:01:09]} exd4 {[%emt 0:01:25]} 5. e5 {[%emt 0:00:04]} d5 {[%emt 0:00:48]} 6. Bb5 {[%emt 0:00:05]} Ne4 {[%emt 0:01:29]} 7. Nxd4 {[%emt 0:00:04]} Bd7 {[%emt 0:00:20]} 8. Bxc6 {[%emt 0:00:04]} bxc6 {[%emt 0:00:34]} 9. O-O {[%emt 0:00:04]} Bc5 {[%emt 0:02:50]} 10. f3 {[%emt 0:00:05]} Ng5 {[%emt 0:00:46]} 11. Be3 {[%emt 0:00:05]} Ne6 {[%emt 0:06:39]} 12. c3 {[%emt 0:30:11]} Bxd4 {[%emt 0:08:30]} 13. cxd4 {[%emt 0:04:02]} f5 {[%emt 0:00:14]} 14. exf6 {[%emt 0:12:59]} Qxf6 {[%emt 0:01:12]} 15. Nd2 {[%emt 0:00:07]} O-O {[%emt 0:03:41]} 16. Nb3 {[%emt 0:00:02]} Rae8 {[%emt 0:01:55]} 17. Qd2 {[%emt 0:04:22]} h6 {[%emt 0:08:36]} 18. Nc5 {[%emt 0:15:07]} Bc8 {[%emt 0:05:06]} 19. Nxe6 {[%emt 0:01:11]} Rxe6 {[%emt 0:00:26]} 20. Rfe1 {[%emt 0:00:38]} Rfe8 {[%emt 0:03:22]} 21. Bf2 {[%emt 0:00:04]} h5 {[%emt 0:07:25]} 22. Rxe6 {[%emt 0:01:05]} Bxe6 {[%emt 0:00:21]} 23. Re1 {[%emt 0:00:15]} Bf7 {[%emt 0:02:05]} 24. Rxe8+ {[%emt 0:04:19]} Bxe8 {[%emt 0:00:05]} 25. h3 {[%emt 0:00:49]} Qf5 {[%emt 0:02:53]} 26. Kh2 {[%emt 0:01:36]} Bg6 {[%emt 0:16:02]} 27. Bg3 {[%emt 0:01:18]} Qc2 {[%emt 0:00:32]} 28. Qg5 {[%emt 0:00:43]} Kh7 {[%emt 0:01:08]} 29. Qe7 {[%emt 0:01:01]} Qf5 {[%emt 0:00:55]} 30. Qxc7 {[%emt 0:00:14]} Qf7 {[%emt 0:00:53]} 31. Qxc6 {[%emt 0:00:26]} Bd3 {[%emt 0:01:58]} 32. b4 {[%emt 0:03:36]} h4 {[%emt 0:07:43]} 33. Be5 {[%emt 0:00:11]} Qe7 {[%emt 0:00:41]} 34. Qxd5 {[%emt 0:02:04]} Qg5 {[%emt 0:00:21]} 35. Qd7 {[%emt 0:02:26]} Bf5 {[%emt 0:01:02]} 36. Qxa7 {[%emt 0:00:19]} Be6 {[%emt 0:00:48]} 37. b5 {[%emt 0:02:20]} Bd5 {[%emt 0:00:09]} 38. b6 {[%emt 0:00:25]} Qg6 {[%emt 0:00:26]} 39. Qe7 {[%emt 0:00:57]} Bxf3 {[%emt 0:00:33]} 40. Qxg7+ {[%emt 0:02:09]} Qxg7 {[%emt 0:00:06]} 41. Bxg7 {[%emt 0:00:04]} Bh5 {[%emt 0:00:07]} 42. Be5 {[%emt 0:00:10]} Bg6 {[%emt 0:00:05]} 43. b7 {[%emt 0:00:05]} Bf7 {[%emt 0:00:05]} 44. b8=Q {[%emt 0:00:05]} Bg6 {[%emt 0:00:06]} 45. Qh8# {[%emt 0:00:05]} 1-0